fUST/lending_fUST_20250121
["ID","MTS","AMOUNT","RATE_DAILY","PERIOD"]
[349744315,1737408645874,-1494.944522,0.00020985,2]
[349744316,1737408645884,-1494.944522,0.00020985,2]
[349744317,1737408645893,-1494.944522,0.00020985,2]
[349744318,1737408645903,-1494.944522,0.00020985,2]
[349744319,1737408645913,-1494.944522,0.00020985,2]
[349744320,1737408645922,-1494.944522,0.00020985,2]
[349744321,1737408645933,-1494.944522,0.00020985,2]
[349744322,1737408645942,-1494.944524,0.00020985,2]
[349744323,1737408645952,-151.0,0.00020985,2]
[349744324,1737408645961,-151.0,0.00020985,2]
[349744325,1737408645971,-151.0,0.00020985,2]
[349744326,1737408645980,-151.0,0.00020985,2]
[349744328,1737408645990,-151.0,0.00020985,2]
[349744330,1737408646000,-1454.386226,0.00020985,2]
[349744332,1737408646009,-1454.386226,0.00020985,2]
[349744334,1737408646019,-1454.386226,0.00020985,2]
[349744335,1737408646116,-1454.386226,0.00020985,2]
[349744336,1737408646128,-1454.386226,0.00020985,2]
[349744337,1737408646137,-1454.386226,0.00020985,2]
[349744338,1737408646147,-1454.386226,0.00020985,2]
[349744339,1737408646157,-1454.386226,0.00020985,2]
[349744340,1737408646166,-1454.386226,0.00020985,2]
[349744341,1737408646175,-1454.38622865,0.00020985,2]
[349744342,1737408646185,-151.0,0.00020985,2]
[349744343,1737408646194,-151.0,0.00020985,2]
[349744344,1737408646203,-151.0,0.00020985,2]
[349744345,1737408646213,-152.767249,0.00020985,2]
[349744346,1737408646222,-151.0,0.00020985,2]
[349744347,1737408646232,-151.0,0.00020985,2]
[349744348,1737408646241,-151.0,0.00020985,2]
[349744349,1737408646251,-151.0,0.00020985,2]
[349744350,1737408646262,-151.0,0.00020985,2]
[349744351,1737408646271,-312.348874,0.00020985,2]
[349744352,1737408646281,-312.348874,0.00020985,2]
[349744353,1737408646290,-312.348874,0.00020985,2]
[349744354,1737408646299,-312.348874,0.00020985,2]
[349744355,1737408646309,-312.348874,0.00020985,2]
[349744356,1737408646318,-312.348874,0.00020985,2]
[349744357,1737408646327,-312.348874,0.00020985,2]
[349744358,1737408646336,-312.348874,0.00020985,2]
[349744359,1737408646346,-312.348874,0.00020985,2]
[349744360,1737408646355,-312.348864,0.00020985,2]
[349744361,1737408646364,-934.185649,0.00020985,2]
[349744362,1737408646375,-151.0,0.00020985,2]
[349744363,1737408646386,-934.185649,0.00020985,2]
[349744364,1737408646397,-151.0,0.00020985,2]
[349744365,1737408646406,-934.185649,0.00020985,2]
[349744366,1737408646415,-184.687052,0.00020985,2]
[349744367,1737408646425,-934.185649,0.00020985,2]
[349744368,1737408646434,-934.185649,0.00020985,2]
[349744369,1737408646444,-934.185649,0.00020985,2]
[349744370,1737408646455,-934.185649,0.00020985,2]
[349744371,1737408646464,-934.185651,0.00020985,2]
[349744372,1737408646475,-179.176531,0.00020985,2]
[349744373,1737408646485,-179.176531,0.00020985,2]
[349744374,1737408646495,-179.176531,0.00020985,2]
[349744375,1737408646505,-179.176531,0.00020985,2]
[349744376,1737408646514,-179.176531,0.00020985,2]
[349744377,1737408646523,-179.176531,0.00020985,2]
[349744378,1737408646533,-179.176531,0.00020985,2]
[349744379,1737408646542,-179.17653,0.00020985,2]
[349744380,1737408646552,-151.0,0.00020985,2]
[349744381,1737408646561,-151.0,0.00020985,2]
[349744382,1737408646571,-187.984808,0.00020985,2]
[349744383,1737408646581,-308.302734,0.00020985,2]
[349744384,1737408646590,-308.302734,0.00020985,2]
[349744385,1737408646599,-308.302734,0.00020985,2]
[349744386,1737408646609,-308.302738,0.00020985,2]
[349744387,1737408646620,-326.525821,0.00020985,2]
[349744388,1737408646630,-326.525821,0.00020985,2]
[349744389,1737408646641,-326.525821,0.00020985,2]
[349744390,1737408646651,-326.525816,0.00020985,2]
[349744391,1737408646663,-5152.20183388,0.00020986,2]
[349744392,1737408646677,-378.2791492,0.00020986,2]
[349744393,1737408646701,-24469.51901792,0.00020986,2]
[349744394,1737408646711,-1157.03857876,0.00020989,20]
[349744395,1737408646720,-985.9676943,0.0002099,2]
[349744396,1737408646730,-515.0,0.0002099,5]
[349744397,1737408646742,-330.14097648,0.00020998,2]
[349744398,1737408646753,-356.54354346,0.00020998,2]
[349744399,1737408646763,-151.0,0.00020999,2]
[349744400,1737408646773,-151.0,0.00020999,2]
[349744401,1737408646783,-151.0,0.00020999,2]
[349744402,1737408646792,-151.0,0.00020999,2]
[349744403,1737408646803,-151.0,0.00020999,2]
[349744404,1737408646813,-151.0,0.00020999,2]
[349744405,1737408646823,-151.0,0.00020999,2]
[349744406,1737408646833,-711.019288,0.00020999,2]
[349744407,1737408646843,-711.019288,0.00020999,2]
[349744408,1737408646853,-289.75529945,0.00020999,2]
[349744409,1737408646862,-500.0,0.00020999,2]
[349744410,1737408646872,-500.0,0.00020999,2]
[349744411,1737408646883,-500.0,0.00020999,2]
[349744412,1737408646892,-500.0,0.00020999,2]
[349744413,1737408646902,-174.69463321,0.00020999,2]
[349744414,1737408646911,-11276.59020133,0.00021,15]
[349744415,1737408646971,-1401.74951982,0.00021,15]
[349744416,1737408646984,-12176.3794396,0.00021,15]
[349744418,1737409288886,164.337028,0.00013973,2]
[349744419,1737409289016,15765.7875189,0.00023728,120]
[349744484,1737409832283,-200.61406489,0.000189,2]
[349744486,1737409832293,-296.190227,0.00019708,2]
[349744487,1737409832306,-564.711,0.0001995,2]
[349744489,1737409832315,-300.0,0.00019999,2]
[349744491,1737409832324,-7016.0,0.0002,3]
[349744493,1737409832333,-3506.0,0.0002,3]
[349744495,1737409832343,-3506.0,0.0002,3]
[349744497,1737409832353,-3506.0,0.0002,3]
[349744498,1737409832363,-3506.0,0.0002,3]
[349744500,1737409832372,-500.0,0.00020432,2]
[349744502,1737409832382,-155.64,0.00020432,2]
[349744504,1737409832392,-156.621993,0.00020736,4]
[349744506,1737409832401,-311.49588571,0.00020899,2]
[349744507,1737409832410,-1893.58068512,0.000209,3]
[349744509,1737409832419,-160.88700972,0.000209,2]
[349744511,1737409832428,-758.49688239,0.000209,2]
[349744513,1737409832438,-500.0,0.00020973,2]
[349744514,1737409832448,-500.0,0.00020973,2]
[349744516,1737409832457,-500.0,0.00020973,2]
[349744518,1737409832467,-274.62160827,0.00020973,2]
[349744520,1737409832477,-500.0,0.00020973,2]
[349744522,1737409832487,-500.0,0.00020973,2]
[349744524,1737409832496,-558.23450394,0.00020973,2]
[349744525,1737409832508,-267.40765759,0.00020998,2]
[349744527,1737409832517,-193.64690213,0.00020999,2]
[349744529,1737409832527,-500.0,0.00020999,2]
[349744531,1737409832536,-500.0,0.00020999,2]
[349744533,1737409832548,-500.0,0.00020999,2]
[349744534,1737409832558,-500.0,0.00020999,2]
[349744536,1737409832567,-500.0,0.00020999,2]
[349744538,1737409832577,-500.0,0.00020999,2]
[349744540,1737409832587,-500.0,0.00020999,2]
[349744542,1737409832597,-628.50522458,0.00020999,2]
[349744543,1737409832606,-365.13175081,0.00020999,2]
[349744545,1737409832616,-220.6874994,0.00020999,2]
[349744547,1737409832626,-3013.14700932,0.00021,5]
[349744549,1737409832635,-1745.02017352,0.00021,5]
[349744551,1737409832644,-13330.38691408,0.00021,15]
[349744749,1737409838099,-15765.7875189,0.00021,15]
[349745683,1737410295272,164.337028,0.00013973,2]
[349745684,1737410793146,-452.65685669,0.000189,2]
[349745709,1737410996981,300.0,0.000167,2]
[349745755,1737411036554,-500.72862516,0.000189,2]
[349745757,1737411036564,-300.0,0.00018985,2]
[349745759,1737411036574,-5794.27271757,0.00018986,2]
[349745767,1737411036648,-19105.72728243,0.00018986,2]
[349745769,1737411036658,-490.7942443,0.00019068,2]
[349745771,1737411036667,-327.89968,0.00019071,2]
[349745773,1737411036677,-3801.0738475,0.00019626,2]
[349745775,1737411036686,-152.0,0.00019702,2]
[349745777,1737411036695,-1000.1700289,0.00019778,2]
[349745779,1737411036705,-18321.61195516,0.00019779,2]
[349745933,1737411038387,-772.26858534,0.00019779,2]
[349745934,1737411038396,-1746.5820214,0.00019854,2]
[349745935,1737411038406,-566.4,0.0001995,2]
[349745936,1737411038415,-3313.0,0.0002,2]
[349745937,1737411038426,-706.5297228,0.00020041,2]
[349745938,1737411038438,-555.22554939,0.00020388,2]
[349745939,1737411038447,-500.0,0.00020432,2]
[349745940,1737411038456,-154.0,0.00020559,2]
[349745941,1737411038466,-154.0,0.00020559,2]
[349745942,1737411038476,-154.0,0.00020559,2]
[349745944,1737411038485,-154.0,0.00020559,2]
[349745945,1737411038494,-154.0,0.00020559,2]
[349745946,1737411038505,-154.0,0.00020559,2]
[349745947,1737411038514,-154.0,0.00020559,2]
[349745948,1737411038524,-154.0,0.00020559,2]
[349745949,1737411038533,-154.0,0.00020559,2]
[349745951,1737411038542,-154.0,0.00020559,2]
[349745953,1737411038551,-154.0,0.00020559,2]
[349745955,1737411038561,-154.0,0.00020559,2]
[349745957,1737411038570,-154.0,0.00020559,2]
[349745959,1737411038580,-154.0,0.00020559,2]
[349745961,1737411038589,-154.0,0.00020559,2]
[349745963,1737411038599,-154.0,0.00020559,2]
[349745965,1737411038608,-169.63,0.00020559,2]
[349745967,1737411038618,-154.0,0.00020559,2]
[349745969,1737411038628,-154.0,0.00020559,2]
[349745981,1737411038726,-154.0,0.00020559,2]
[349745983,1737411038736,-154.0,0.00020559,2]
[349745985,1737411038745,-154.0,0.00020559,2]
[349745987,1737411038754,-154.0,0.00020559,2]
[349745989,1737411038763,-154.0,0.00020559,2]
[349745991,1737411038773,-154.0,0.00020559,2]
[349745993,1737411038782,-154.0,0.00020559,2]
[349745995,1737411038791,-154.0,0.00020559,2]
[349745997,1737411038801,-154.0,0.00020559,2]
[349745999,1737411038810,-154.0,0.00020559,2]
[349746001,1737411038819,-154.0,0.00020559,2]
[349746003,1737411038829,-154.0,0.00020559,2]
[349746005,1737411038838,-165.53,0.00020559,2]
[349746007,1737411038849,-1506.57350466,0.00020581,5]
[349746010,1737411038859,-249.0,0.00020618,2]
[349746012,1737411038868,-420.0,0.00020694,2]
[349746013,1737411038877,-1408.2685618,0.00020788,5]
[349746016,1737411038889,-14219.63239822,0.00020788,5]
[349746018,1737411038899,-703.35330578,0.00020788,2]
[349746020,1737411038910,-979.8762066,0.00020788,2]
[349746022,1737411038922,-6099.15736546,0.00020788,2]
[349746024,1737411038931,-167.7941571,0.00020789,2]
[349746026,1737411038941,-152.0,0.0002085,2]
[349746028,1737411038954,-152.0,0.0002085,2]
[349746030,1737411038963,-152.0,0.0002085,2]
[349746032,1737411038974,-152.0,0.0002085,2]
[349746034,1737411038983,-152.0,0.0002085,2]
[349746036,1737411038992,-152.0,0.0002085,2]
[349746039,1737411039002,-152.0,0.0002085,2]
[349746040,1737411039013,-152.0,0.0002085,2]
[349746043,1737411039023,-152.0,0.0002085,2]
[349746045,1737411039033,-152.0,0.0002085,2]
[349746047,1737411039043,-152.0,0.0002085,2]
[349746049,1737411039053,-152.0,0.0002085,2]
[349746051,1737411039062,-152.0,0.0002085,2]
[349746053,1737411039071,-152.0,0.0002085,2]
[349746055,1737411039081,-152.0,0.0002085,2]
[349746057,1737411039090,-152.0,0.0002085,2]
[349746059,1737411039100,-152.0,0.0002085,2]
[349746061,1737411039110,-152.0,0.0002085,2]
[349746063,1737411039120,-152.0,0.0002085,2]
[349746065,1737411039129,-152.0,0.0002085,2]
[349746067,1737411039138,-152.0,0.0002085,2]
[349746069,1737411039147,-247.16,0.0002085,2]
[349746071,1737411039158,-280.74087118,0.00020873,2]
[349746073,1737411039167,-744.19787755,0.000209,2]
[349746075,1737411039176,-500.0,0.00020973,2]
[349746077,1737411039185,-500.0,0.00020973,2]
[349746079,1737411039195,-501.70911784,0.00020973,2]
[349746081,1737411039205,-269.34086314,0.00020983,2]
[349746083,1737411039215,-2000.0,0.0002099,2]
[349746086,1737411039234,-200.55574319,0.00020998,2]
[349746089,1737411039252,-233.887,0.00020998,2]
[349746092,1737411039268,-151.0,0.00020999,2]
[349746095,1737411039285,-151.0,0.00020999,2]
[349746098,1737411039302,-151.0,0.00020999,2]
[349746101,1737411039322,-151.0,0.00020999,2]
[349746104,1737411039337,-151.0,0.00020999,2]
[349746106,1737411039355,-151.0,0.00020999,2]
[349746109,1737411039371,-151.0,0.00020999,2]
[349746112,1737411039385,-151.0,0.00020999,2]
[349746114,1737411039400,-151.0,0.00020999,2]
[349746117,1737411039416,-177.754822,0.00020999,2]
[349746120,1737411039440,-459.364255,0.00020999,2]
[349746123,1737411039456,-459.364255,0.00020999,2]
[349746125,1737411039468,-459.364255,0.00020999,2]
[349746128,1737411039485,-459.364255,0.00020999,2]
[349746131,1737411039500,-151.0,0.00020999,2]
[349746134,1737411039516,-151.0,0.00020999,2]
[349746136,1737411039530,-151.0,0.00020999,2]
[349746138,1737411039544,-151.0,0.00020999,2]
[349746141,1737411039559,-151.0,0.00020999,2]
[349746144,1737411039574,-500.0,0.00020999,2]
[349746146,1737411039589,-500.0,0.00020999,2]
[349746149,1737411039605,-500.0,0.00020999,2]
[349746152,1737411039619,-500.0,0.00020999,2]
[349746154,1737411039634,-500.0,0.00020999,2]
[349746157,1737411039649,-500.0,0.00020999,2]
[349746159,1737411039664,-500.0,0.00020999,2]
[349746162,1737411039679,-500.0,0.00020999,2]
[349746164,1737411039695,-500.0,0.00020999,2]
[349746167,1737411039709,-500.0,0.00020999,2]
[349746170,1737411039724,-500.0,0.00020999,2]
[349746172,1737411039738,-587.84233083,0.00020999,2]
[349746175,1737411039752,-500.0,0.00020999,2]
[349746178,1737411039767,-156.4210258,0.00020999,2]
[349746181,1737411039781,-500.0,0.00020999,2]
[349746183,1737411039795,-500.0,0.00020999,2]
[349746186,1737411039810,-500.0,0.00020999,2]
[349746189,1737411039824,-189.13752448,0.00020999,2]
[349746191,1737411039838,-500.0,0.00020999,2]
[349746194,1737411039853,-500.0,0.00020999,2]
[349746196,1737411039867,-500.0,0.00020999,2]
[349746199,1737411039882,-500.0,0.00020999,2]
[349746201,1737411039896,-500.0,0.00020999,2]
[349746204,1737411039911,-500.0,0.00020999,2]
[349746206,1737411039925,-500.0,0.00020999,2]
[349746209,1737411039938,-500.0,0.00020999,2]
[349746212,1737411039953,-277.42058891,0.00020999,2]
[349746214,1737411039966,-500.0,0.00020999,2]
[349746216,1737411039975,-500.0,0.00020999,2]
[349746218,1737411039985,-500.0,0.00020999,2]
[349746220,1737411039994,-500.0,0.00020999,2]
[349746238,1737411040148,-381.38555767,0.00020999,2]
[349746241,1737411040172,-370.08217009,0.00020999,2]
[349746243,1737411040181,-500.0,0.00020999,2]
[349746245,1737411040190,-500.0,0.00020999,2]
[349746247,1737411040200,-300.141,0.00020999,2]
[349746249,1737411040209,-372.5,0.00020999,2]
[349746251,1737411040219,-500.0,0.00020999,2]
[349746253,1737411040228,-358.63064266,0.00020999,2]
[349746255,1737411040237,-566.34143575,0.00020999,2]
[349746257,1737411040246,-500.0,0.00020999,2]
[349746259,1737411040255,-500.0,0.00020999,2]
[349746261,1737411040264,-500.0,0.00020999,2]
[349746263,1737411040274,-500.0,0.00020999,2]
[349746266,1737411040284,-500.0,0.00020999,2]
[349746268,1737411040293,-500.0,0.00020999,2]
[349746270,1737411040302,-593.28525213,0.00020999,2]
[349746272,1737411040311,-500.0,0.00020999,2]
[349746274,1737411040320,-500.0,0.00020999,2]
[349746276,1737411040329,-500.0,0.00020999,2]
[349746278,1737411040339,-500.0,0.00020999,2]
[349746280,1737411040349,-500.0,0.00020999,2]
[349746282,1737411040358,-500.0,0.00020999,2]
[349746284,1737411040367,-500.0,0.00020999,2]
[349746286,1737411040376,-636.96780801,0.00020999,2]
[349746288,1737411040386,-500.0,0.00020999,2]
[349746290,1737411040395,-500.0,0.00020999,2]
[349746292,1737411040405,-500.0,0.00020999,2]
[349746294,1737411040415,-500.0,0.00020999,2]
[349746296,1737411040427,-500.0,0.00020999,2]
[349746298,1737411040436,-200.0,0.00020999,2]
[349746300,1737411040446,-500.0,0.00020999,2]
[349746302,1737411040455,-500.0,0.00020999,2]
[349746304,1737411040464,-500.0,0.00020999,2]
[349746306,1737411040474,-500.0,0.00020999,2]
[349746308,1737411040483,-500.0,0.00020999,2]
[349746310,1737411040492,-500.0,0.00020999,2]
[349746312,1737411040502,-500.0,0.00020999,2]
[349746314,1737411040512,-500.0,0.00020999,2]
[349746316,1737411040522,-500.0,0.00020999,2]
[349746318,1737411040531,-500.0,0.00020999,2]
[349746320,1737411040540,-500.0,0.00020999,2]
[349746322,1737411040550,-500.0,0.00020999,2]
[349746325,1737411040560,-500.0,0.00020999,2]
[349746326,1737411040569,-500.0,0.00020999,2]
[349746329,1737411040578,-500.0,0.00020999,2]
[349746331,1737411040587,-500.0,0.00020999,2]
[349746333,1737411040598,-500.0,0.00020999,2]
[349746335,1737411040608,-500.0,0.00020999,2]
[349746337,1737411040617,-500.0,0.00020999,2]
[349746339,1737411040627,-500.0,0.00020999,2]
[349746341,1737411040636,-500.0,0.00020999,2]
[349746343,1737411040645,-500.0,0.00020999,2]
[349746345,1737411040655,-544.54488341,0.00020999,2]
[349746347,1737411040664,-500.0,0.00020999,2]
[349746349,1737411040675,-500.0,0.00020999,2]
[349746351,1737411040684,-500.0,0.00020999,2]
[349746353,1737411040694,-500.0,0.00020999,2]
[349746355,1737411040703,-500.0,0.00020999,2]
[349746357,1737411040712,-500.0,0.00020999,2]
[349746359,1737411040721,-500.0,0.00020999,2]
[349746361,1737411040731,-500.0,0.00020999,2]
[349746363,1737411040740,-500.0,0.00020999,2]
[349746366,1737411040750,-260.75200943,0.00020999,2]
[349746368,1737411040759,-500.0,0.00020999,2]
[349746370,1737411040768,-500.0,0.00020999,2]
[349746372,1737411040778,-223.9228265,0.00020999,2]
[349746374,1737411040787,-500.0,0.00020999,2]
[349746376,1737411040797,-138974.87010687,0.00021,15]
[349746449,1737411041494,-937.09798092,0.00021,15]
[349746451,1737411041579,-97799.9999994,0.00021,15]
[349746613,1737411043400,-49481.89969466,0.00021,15]
[349746647,1737411350705,164.634904,0.00013973,2]
[349746648,1737411496876,-333.81908344,0.000189,2]
[349746649,1737411509847,566.213,0.0001995,2]
[349746650,1737411566191,772.2685853,0.00019962,2]
[349746651,1737411753998,323.563712,0.00019933,2]
[349746652,1737411762319,8571.8128638,0.00019933,2]
[349746653,1737411777525,222.54605563,0.000189,2]
[349746654,1737411889954,205.0468682,0.0001989,2]
[349746674,1737412188577,543.13,0.0001995,2]
[349746810,1737412238626,-500.0,0.00020432,2]
[349746812,1737412238636,-7291.69658474,0.00020567,2]
[349746814,1737412238646,-152.0,0.00020649,2]
[349746816,1737412238655,-152.0,0.00020649,2]
[349746818,1737412238665,-152.0,0.00020649,2]
[349746820,1737412238674,-152.0,0.00020649,2]
[349746822,1737412238683,-152.0,0.00020649,2]
[349746824,1737412238693,-227.47,0.00020649,2]
[349746826,1737412238702,-500.94256051,0.00020674,2]
[349746828,1737412238711,-300.0,0.00020693,2]
[349746831,1737412238720,-337.6243937,0.00020726,2]
[349747048,1737412240800,-662.3756063,0.00020726,2]
[349747050,1737412240810,-156.621993,0.00020736,4]
[349747052,1737412240823,-1000.0,0.00020782,2]
[349747054,1737412240833,-167.7941571,0.00020789,2]
[349747056,1737412240842,-1000.0,0.00020793,2]
[349747058,1737412240852,-314.56250941,0.00020803,2]
[349747061,1737412240863,-822.64573419,0.00020807,2]
[349747322,1737412243498,-177.35426581,0.00020807,2]
[349747324,1737412243509,-1000.0,0.00020824,2]
[349747326,1737412243518,-1000.0,0.00020877,2]
[349747328,1737412243527,-448.05348609,0.000209,2]
[349747335,1737412243591,-528.45724671,0.000209,2]
[349747337,1737412243601,-259.85278686,0.0002096,2]
[349747340,1737412243611,-1000.0,0.00020965,2]
[349747343,1737412243620,-200.55574319,0.00020998,2]
[349747345,1737412243629,-155.3,0.00020998,2]
[349747347,1737412243639,-555.22554939,0.00020999,2]
[349747349,1737412243649,-187.11,0.00020999,2]
[349747350,1737412243658,-500.0,0.00020999,7]
[349747353,1737412243668,-112043.94002891,0.00021,15]
[349747355,1737412243678,-10427.21,0.00021,2]
[349747357,1737412243687,-16825.05,0.00021,2]
[349747359,1737412243696,-2475.91155158,0.00021,2]
[349747361,1737412243706,-17971.59544941,0.00021,2]
[349747363,1737412243715,-500.0,0.00021,5]
[349747365,1737412243725,-445.95071112,0.00021,5]
[349747367,1737412243735,-150.0,0.00021,2]
[349747369,1737412243746,-2000.0,0.00021,2]
[349747371,1737412243756,-20733.0,0.00021,2]
[349747373,1737412243766,-800.0,0.00021,7]
[349747375,1737412243776,-314.9807476,0.00021,2]
[349747377,1737412243786,-153.0,0.00021,2]
[349747379,1737412243795,-215.0156227,0.00021,2]
[349747381,1737412243806,-313.5410801,0.00021,2]
[349747383,1737412243818,-214.5432881,0.00021,2]
[349747385,1737412243827,-153.0,0.00021,2]
[349747387,1737412243837,-543.0,0.00021,2]
[349747389,1737412243847,-153.0,0.00021,2]
[349747391,1737412243858,-237.8895869,0.00021,2]
[349747393,1737412243867,-153.0,0.00021,2]
[349747395,1737412243877,-1000.769143,0.00021,2]
[349747397,1737412243887,-500.0,0.00021037,2]
[349747399,1737412243898,-500.0,0.00021037,2]
[349747401,1737412243907,-276.33654835,0.00021037,2]
[349747403,1737412243917,-500.0,0.00021037,2]
[349747405,1737412243926,-500.0,0.00021037,2]
[349747407,1737412243936,-500.0,0.00021037,2]
[349747409,1737412243945,-500.0,0.00021037,2]
[349747411,1737412243955,-976.5107327,0.00021038,2]
[349747413,1737412243966,-976.5107327,0.00021176,2]
[349747414,1737412243975,-976.5107327,0.00021314,2]
[349747416,1737412243984,-976.5107327,0.00021452,2]
[349747418,1737412243994,-976.5107327,0.0002159,2]
[349747421,1737412244004,-3000.0,0.000216,2]
[349747422,1737412244013,-3313.0,0.000216,4]
[349747424,1737412244023,-151.0,0.000216,3]
[349747427,1737412244032,-151.0,0.000216,3]
[349747428,1737412244042,-151.0,0.000216,4]
[349747430,1737412244051,-151.0,0.000216,4]
[349747432,1737412244061,-3000.0,0.0002161,2]
[349747434,1737412244070,-3000.0,0.0002162,2]
[349747437,1737412244080,-3000.0,0.0002163,2]
[349747439,1737412244090,-3000.0,0.0002164,2]
[349747441,1737412244100,-3000.0,0.0002165,2]
[349747443,1737412244110,-3000.0,0.0002166,2]
[349747445,1737412244120,-3000.0,0.0002167,2]
[349747447,1737412244129,-3000.0,0.0002168,2]
[349747449,1737412244139,-3000.0,0.0002169,2]
[349747451,1737412244149,-151.0,0.0002169,2]
[349747452,1737412244159,-151.0,0.0002169,2]
[349747454,1737412244169,-151.0,0.0002169,2]
[349747456,1737412244178,-151.0,0.0002169,2]
[349747458,1737412244188,-3000.0,0.000217,2]
[349747460,1737412244198,-151.0,0.000217,4]
[349747462,1737412244208,-151.0,0.000217,2]
[349747464,1737412244217,-151.0,0.000217,4]
[349747466,1737412244227,-151.0,0.000217,4]
[349747468,1737412244236,-3000.0,0.0002171,2]
[349747470,1737412244246,-151.0,0.0002171,2]
[349747472,1737412244255,-200.52253,0.0002171,2]
[349747474,1737412244265,-151.0,0.0002171,2]
[349747476,1737412244275,-3000.0,0.0002172,2]
[349747478,1737412244284,-482.684817,0.0002172,2]
[349747480,1737412244294,-482.684817,0.0002172,2]
[349747482,1737412244303,-151.0,0.0002172,2]
[349747484,1737412244313,-151.0,0.0002172,2]
[349747495,1737412244425,-976.5107327,0.00021728,3]
[349747496,1737412244436,-4775.108012,0.0002173,2]
[349747497,1737412244447,-151.0,0.0002173,2]
[349747498,1737412244457,-151.0,0.0002173,2]
[349747499,1737412244466,-151.0,0.0002173,2]
[349747500,1737412244476,-151.0,0.0002173,2]
[349747501,1737412244486,-151.0,0.0002173,2]
[349747502,1737412244495,-367.491404,0.0002173,2]
[349747503,1737412244505,-367.491404,0.0002173,2]
[349747504,1737412244514,-151.0,0.0002174,2]
[349747505,1737412244523,-151.0,0.0002174,2]
[349747506,1737412244533,-151.0,0.00021776,2]
[349747507,1737412244543,-151.0,0.00021776,2]
[349747508,1737412244552,-536.0,0.00021776,2]
[349747510,1737412244562,-2062.0,0.00021776,2]
[349747511,1737412244571,-2307.0,0.00021776,2]
[349747513,1737412244581,-395.0,0.00021776,2]
[349747515,1737412244591,-151.0,0.000218,3]
[349747517,1737412244600,-151.0,0.000218,4]
[349747519,1737412244610,-151.0,0.000218,4]
[349747521,1737412244620,-1457.88606378,0.00021817,2]
[349747523,1737412244629,-976.5107327,0.00021866,3]
[349747526,1737412244638,-3829.0087458,0.000219,2]
[349747528,1737412244649,-3670.0,0.0002191,10]
[349747530,1737412244658,-500.0,0.00021916,2]
[349747532,1737412244668,-500.0,0.00021916,2]
[349747534,1737412244678,-182.5264066,0.00021916,2]
[349747536,1737412244687,-206.74597855,0.00021916,2]
[349747538,1737412244697,-500.0,0.00021916,2]
[349747540,1737412244706,-1506.57350466,0.00021917,5]
[349747542,1737412244716,-8518.08476091,0.00021917,5]
[349747544,1737412244725,-320.09970471,0.00021917,3]
[349747546,1737412244735,-500.0,0.00021917,2]
[349747548,1737412244744,-500.0,0.00021917,3]
[349747550,1737412244754,-500.42255872,0.00021917,3]
[349747552,1737412244763,-500.0,0.00021917,3]
[349747554,1737412244772,-500.0,0.00021917,3]
[349747556,1737412244782,-500.0,0.00021917,3]
[349747558,1737412244791,-500.0,0.00021917,3]
[349747560,1737412244800,-500.24047302,0.00021917,3]
[349747562,1737412244810,-502.53844464,0.00021917,3]
[349747564,1737412244823,-500.0,0.00021917,3]